fUSD/lending_fUSD_20260509
["ID","MTS","AMOUNT","RATE_DAILY","PERIOD"]
[421886614,1778290232000,-500.0,0.00013493,2]
[421886612,1778290232000,-150.0,0.00013488,2]
[421886617,1778290232000,-232.93,0.00013611,2]
[421886601,1778290232000,-1680.0,0.00012907,2]
[421886618,1778290232000,-150.0,0.00013624,2]
[421886624,1778290232000,-150.0,0.00013896,2]
[421886622,1778290232000,-2000.0,0.00013817,2]
[421886620,1778290232000,-150.0,0.0001376,2]
[421886621,1778290232000,-500.0,0.00013781,2]
[421886623,1778290232000,-180.33,0.00013853,2]
[421886619,1778290232000,-200.0,0.00013699,2]
[421886627,1778290232000,-317.5113,0.0001395,2]
[421886609,1778290232000,-150.0,0.00013488,2]
[421886596,1778290232000,-151.0,0.00012834,2]
[421886584,1778290232000,-151.0,0.00012834,2]
[421886592,1778290232000,-151.0,0.00012834,2]
[421886625,1778290232000,-163.50601222,0.0001393,2]
[421886543,1778290232000,-151.0,0.00012834,2]
[421886555,1778290232000,-151.0,0.00012834,2]
[421886545,1778290232000,-500.0,0.00012834,2]
[421886547,1778290232000,-151.0,0.00012834,2]
[421886557,1778290232000,-500.0,0.00012834,2]
[421886551,1778290232000,-151.0,0.00012834,2]
[421886559,1778290232000,-151.0,0.00012834,2]
[421886549,1778290232000,-151.0,0.00012834,2]
[421886553,1778290232000,-151.0,0.00012834,2]
[421886562,1778290232000,-500.0,0.00012834,2]
[421886560,1778290232000,-500.0,0.00012834,2]
[421886598,1778290232000,-2080.17592889,0.00012834,2]
[421886564,1778290232000,-151.0,0.00012834,2]
[421886568,1778290232000,-500.0,0.00012834,2]
[421886566,1778290232000,-151.0,0.00012834,2]
[421886578,1778290232000,-151.0,0.00012834,2]
[421886582,1778290232000,-151.0,0.00012834,2]
[421886572,1778290232000,-500.0,0.00012834,2]
[421886580,1778290232000,-151.0,0.00012834,2]
[421886574,1778290232000,-151.0,0.00012834,2]
[421886576,1778290232000,-500.0,0.00012834,2]
[421886586,1778290232000,-151.0,0.00012834,2]
[421886588,1778290232000,-151.0,0.00012834,2]
[421886590,1778290232000,-151.0,0.00012834,2]
[421886594,1778290232000,-151.0,0.00012834,2]
[421886570,1778290232000,-151.0,0.00012834,2]
[421886626,1778290232000,-255.0,0.00013937,2]
[421886641,1778290232000,-500.0,0.00014049,2]
[421886629,1778290232000,-5100.9294,0.0001395,2]
[421886660,1778290232000,-500.0,0.00014049,2]
[421886663,1778290232000,-594.33296646,0.00014049,2]
[421886662,1778290232000,-500.0,0.00014049,2]
[421886665,1778290232000,-500.0,0.00014049,2]
[421886668,1778290232000,-500.0,0.00014049,2]
[421886664,1778290232000,-500.0,0.00014049,2]
[421886667,1778290232000,-500.0,0.00014049,2]
[421886666,1778290232000,-500.0,0.00014049,2]
[421886669,1778290232000,-500.0,0.00014049,2]
[421886670,1778290232000,-500.0,0.00014049,2]
[421886673,1778290232000,-500.0,0.00014049,2]
[421886671,1778290232000,-500.0,0.00014049,2]
[421886661,1778290232000,-500.0,0.00014049,2]
[421886628,1778290232000,-469.0772,0.0001395,2]
[421886674,1778290232000,-499.99999999,0.00014049,2]
[421886677,1778290232000,-150.0,0.00014169,2]
[421886676,1778290232000,-2695.9149,0.00014149,2]
[421886678,1778290232000,-2351.0,0.00014198,2]
[421886682,1778290232000,-150.0,0.00014441,2]
[421886680,1778290232000,-195.05,0.000143,2]
[421886681,1778290232000,-150.0,0.00014305,2]
[421886679,1778290232000,-150.0,0.00014237,2]
[421886685,1778290232000,-2378.97715096,0.000147,2]
[421886684,1778290232000,-152.0,0.00014584,6]
[421886683,1778290232000,-150.0,0.00014578,2]
[421886686,1778290232000,-150.0,0.00014714,2]
[421886675,1778290232000,-312856.4167,0.0001405,2]
[421886657,1778290232000,-500.0,0.00014049,2]
[421886672,1778290232000,-500.0,0.00014049,2]
[421886658,1778290232000,-500.0,0.00014049,2]
[421886659,1778290232000,-500.0,0.00014049,2]
[421886631,1778290232000,-4047.21419767,0.00013955,2]
[421886632,1778290232000,-5167.74272391,0.00013955,2]
[421886630,1778290232000,-1691.9064,0.0001395,2]
[421886633,1778290232000,-232.93,0.00013979,2]
[421886634,1778290232000,-150.0,0.00014033,2]
[421886638,1778290232000,-500.0,0.00014049,2]
[421886636,1778290232000,-151.0,0.00014047,2]
[421886637,1778290232000,-500.0,0.00014049,2]
[421886640,1778290232000,-500.0,0.00014049,2]
[421886639,1778290232000,-456.38956511,0.00014049,2]
[421886646,1778290232000,-500.0,0.00014049,2]
[421886643,1778290232000,-500.0,0.00014049,2]
[421886635,1778290232000,-152.0,0.00014046,5]
[421886645,1778290232000,-500.0,0.00014049,2]
[421886656,1778290232000,-500.0,0.00014049,2]
[421886649,1778290232000,-500.0,0.00014049,2]
[421886654,1778290232000,-500.0,0.00014049,2]
[421886655,1778290232000,-500.0,0.00014049,2]
[421886652,1778290232000,-500.0,0.00014049,2]
[421886644,1778290232000,-500.0,0.00014049,2]
[421886653,1778290232000,-500.0,0.00014049,2]
[421886648,1778290232000,-622.9963965,0.00014049,2]
[421886651,1778290232000,-500.0,0.00014049,2]
[421886642,1778290232000,-500.0,0.00014049,2]
[421886647,1778290232000,-500.0,0.00014049,2]
[421886650,1778290232000,-500.0,0.00014049,2]
[421886710,1778290233000,-2052.93941201,0.000149,2]
[421886707,1778290233000,-1257.77745052,0.000149,2]
[421886703,1778290233000,-1893.3630529,0.00014896,2]
[421886708,1778290233000,-642.08736916,0.000149,2]
[421886706,1778290233000,-429.06417834,0.000149,2]
[421886709,1778290233000,-5941.41208862,0.000149,2]
[421886716,1778290233000,-500.0,0.00014973,2]
[421886712,1778290233000,-228.22903857,0.00014973,2]
[421886715,1778290233000,-319.49667034,0.00014973,2]
[421886713,1778290233000,-500.0,0.00014973,2]
[421886705,1778290233000,-5000.0,0.000149,2]
[421886717,1778290233000,-500.0,0.00014973,2]
[421886711,1778290233000,-5020.77573345,0.00014918,2]
[421886701,1778290233000,-911.5065849,0.00014896,2]
[421886689,1778290233000,-500.0,0.00014849,2]
[421886700,1778290233000,-9121.914626,0.00014895,2]
[421886698,1778290233000,-6352.6518605,0.00014895,2]
[421886699,1778290233000,-857.2276293,0.00014895,2]
[421886691,1778290233000,-833.33333,0.0001485,2]
[421886697,1778290233000,-5167.7427239,0.00014877,2]
[421886693,1778290233000,-833.33333,0.0001486,2]
[421886695,1778290233000,-1000.0,0.00014863,2]
[421886690,1778290233000,-833.33333,0.0001485,2]
[421886692,1778290233000,-150.0,0.0001485,2]
[421886696,1778290233000,-4047.21419762,0.00014877,2]
[421886694,1778290233000,-500.0,0.00014863,2]
[421886688,1778290233000,-152.0,0.00014817,7]
[421886687,1778290233000,-1625.336,0.00014789,2]
[421886714,1778290233000,-500.0,0.00014973,2]
[421886702,1778290233000,-355.0000002,0.00014896,2]
[421886722,1778290233000,-157.73,0.00014985,2]
[421886704,1778290233000,-151.0,0.000149,2]
[421886718,1778290233000,-500.0,0.00014973,2]
[421886721,1778290233000,-153.76908211,0.00014975,2]
[421886747,1778290233000,-8922.97827449,0.00015,2]
[421886748,1778290233000,-1305.0,0.00015,2]
[421886742,1778290233000,-278.0,0.00015,5]
[421886741,1778290233000,-450.0,0.00015,5]
[421886743,1778290233000,-150.0,0.00015,2]
[421886746,1778290233000,-3238.58611989,0.00015,2]
[421886745,1778290233000,-234319.49650079,0.00015,2]
[421886744,1778290233000,-164.0,0.00015,2]
[421886740,1778290233000,-300.0,0.00014999,2]
[421886737,1778290233000,-195.03731623,0.00014998,2]
[421886739,1778290233000,-156.07995926,0.00014998,2]
[421886738,1778290233000,-500.0,0.00014998,2]
[421886736,1778290233000,-408.91237143,0.00014998,2]
[421886734,1778290233000,-322.822536,0.0001499,2]
[421886749,1778290233000,-355.00000001,0.00015,2]
[421886733,1778290233000,-150.0,0.00014986,2]
[421886720,1778290233000,-500.0,0.00014973,2]
[421886719,1778290233000,-500.0,0.00014973,2]
[421886723,1778290233000,-163.18,0.00014985,2]
[421886725,1778290233000,-472.87,0.00014985,2]
[421886727,1778290233000,-327.28,0.00014985,2]
[421886729,1778290233000,-150.0,0.00014986,2]
[421886724,1778290233000,-298.52,0.00014985,2]
[421886730,1778290233000,-150.0,0.00014986,2]
[421886735,1778290233000,-322.822536,0.0001499,2]
[421886728,1778290233000,-229.1,0.00014985,2]
[421886732,1778290233000,-150.0,0.00014986,2]
[421886750,1778290233000,-965.61194919,0.00015,2]
[421886726,1778290233000,-467.55,0.00014985,2]
[421886731,1778290233000,-150.0,0.00014986,2]
[421886765,1778290238000,-127047.8554593,0.00015,2]
[421886764,1778290238000,-11107.68041492,0.00015,2]
[421886763,1778290238000,-1519.74028544,0.00015,2]
[421886762,1778290238000,-380.52932165,0.00015,2]
[421886760,1778290238000,-1593.12422716,0.000147,2]
[421886761,1778290238000,-25342.0124604,0.00015,2]
[421886767,1778290240000,-8086.4,0.00015,2]
[421886834,1778290242000,-584.65516556,0.00013949,2]
[421886836,1778290243000,-707.1999875,0.00013949,2]
[421886845,1778290245000,-276.76209229,0.00012734,2]
[421886846,1778290245000,-8011.58430671,0.00013949,2]
[421886844,1778290245000,-310.0,0.00012734,2]
[421886847,1778290246000,-2411.05555928,0.00013949,2]
[421886856,1778290419000,1056.78930052,0.00030135,120]
[421886857,1778290427000,754.84950037,0.00030135,120]
[421886860,1778290721000,213.76,0.00013385,7]
[421886861,1778290855000,3168.1,0.00030137,120]
[421886862,1778290859000,470.9758,0.00030136,120]
[421886863,1778290902000,628.6,0.00030136,120]
[421886864,1778290919000,178.8,6.291e-05,2]
[421886865,1778291052000,344.05,0.00030136,120]
[421886866,1778291178000,150.0,0.00012404,120]
[421886872,1778291431000,-272.0,0.00012349,2]
[421886867,1778291431000,-200.0,0.00011916,2]
[421886868,1778291431000,-250.0,0.00012108,2]
[421886870,1778291431000,-270.04,0.000123,2]
[421886871,1778291431000,-500.0,0.000123,2]
[421886873,1778291431000,-839.24,0.000124,2]
[421886874,1778291431000,-2111.78030549,0.000124,2]
[421886869,1778291431000,-150.0,0.00012228,2]
[421886876,1778291431000,-855.06629437,0.000124,2]
[421886878,1778291431000,-173.68506561,0.00012404,2]
[421886875,1778291431000,-900.0,0.000124,2]
[421886880,1778291431000,-150.0,0.00012404,2]
[421886884,1778291431000,-690.02,0.0001257,2]
[421886886,1778291431000,-178.8,0.00012581,2]
[421886882,1778291431000,-4268.39,0.00012538,2]
[421886888,1778291431000,-886.1,0.00012581,2]
[421886936,1778291432000,-150.0,0.00013638,2]
[421886942,1778291432000,-500.0,0.00013698,2]
[421886939,1778291432000,-500.0,0.00013698,2]
[421886947,1778291432000,-500.0,0.00013698,2]
[421886931,1778291432000,-900.0,0.00013493,2]
[421886948,1778291432000,-500.0,0.00013698,2]
[421886937,1778291432000,-150.0,0.00013675,2]
[421886944,1778291432000,-500.0,0.00013698,2]
[421886932,1778291432000,-295.65,0.00013495,2]
[421886929,1778291432000,-150.0,0.00013488,2]
[421886946,1778291432000,-500.0,0.00013698,2]
[421886938,1778291432000,-150.0,0.00013687,2]
[421886940,1778291432000,-500.0,0.00013698,2]
[421886945,1778291432000,-500.0,0.00013698,2]
[421886943,1778291432000,-505.3722046,0.00013698,2]
[421886928,1778291432000,-150.0,0.00013488,2]
[421886950,1778291432000,-500.0,0.00013698,2]
[421886949,1778291432000,-500.0,0.00013698,2]
[421886960,1778291432000,-4906.72,0.00013699,2]
[421886952,1778291432000,-500.0,0.00013698,2]
[421886953,1778291432000,-500.0,0.00013698,2]
[421886951,1778291432000,-500.0,0.00013698,2]
[421886954,1778291432000,-500.0,0.00013698,2]
[421886955,1778291432000,-154.05330087,0.00013698,2]
[421886958,1778291432000,-504.56234086,0.00013698,2]
[421886956,1778291432000,-500.0,0.00013698,2]
[421886941,1778291432000,-500.0,0.00013698,2]
[421886930,1778291432000,-500.0,0.00013493,2]
[421886926,1778291432000,-150.0,0.00013488,2]
[421886935,1778291432000,-150.0,0.00013588,2]
[421886957,1778291432000,-500.0,0.00013698,2]
[421886889,1778291432000,-1200.0,0.00012629,2]
[421886896,1778291432000,-676.35,0.00013092,2]
[421886894,1778291432000,-898.41,0.00012799,2]
[421886890,1778291432000,-2000.0,0.0001263,2]
[421886893,1778291432000,-201.32,0.00012749,2]
[421886892,1778291432000,-161.03,0.00012699,2]
[421886891,1778291432000,-300.0,0.00012698,2]
[421886895,1778291432000,-1435.53,0.00013001,2]
[421886898,1778291432000,-230.38062833,0.00013108,2]
[421886897,1778291432000,-250.0,0.00013108,2]
[421886899,1778291432000,-250.0,0.00013108,2]
[421886900,1778291432000,-898.41,0.00013119,2]
[421886927,1778291432000,-150.0,0.00013488,2]
[421886910,1778291432000,-2547.6653,0.0001337,2]
[421886915,1778291432000,-9796.86546096,0.00013388,2]
[421886917,1778291432000,-898.41,0.00013439,2]
[421886902,1778291432000,-500.0,0.00013287,2]
[421886904,1778291432000,-2500.0,0.00013288,2]
[421886921,1778291432000,-151.97565158,0.00013488,2]
[421886919,1778291432000,-150.0,0.00013488,2]
[421886923,1778291432000,-150.0,0.00013488,2]
[421886906,1778291432000,-5124.26056048,0.00013288,2]
[421886908,1778291432000,-5134.5735075,0.00013288,2]
[421886933,1778291432000,-167.44,0.00013523,2]
[421886924,1778291432000,-150.0,0.00013488,2]
[421886925,1778291432000,-150.0,0.00013488,2]
[421886934,1778291432000,-150.0,0.00013538,2]
[421886913,1778291432000,-150.0,0.00013387,2]
[421886959,1778291432000,-504.57611816,0.00013698,2]
[421886967,1778291432000,-2500.0,0.00013699,2]
[421886971,1778291432000,-898.41,0.00013759,2]
[421886989,1778291432000,-151.0,0.00013815,2]
[421886995,1778291432000,-151.0,0.00013815,2]
[421886994,1778291432000,-151.0,0.00013815,2]
[421886996,1778291432000,-151.0,0.00013815,2]
[421886999,1778291432000,-151.0,0.00013815,2]
[421887008,1778291432000,-150.0,0.00013887,2]
[421887009,1778291432000,-1680.0,0.00013892,2]
[421887000,1778291432000,-151.0,0.00013815,2]
[421887007,1778291432000,-150.0,0.00013862,2]
[421887005,1778291432000,-1241.42588876,0.0001385,2]
[421887003,1778291432000,-150.0,0.00013837,2]
[421887002,1778291432000,-166.66,0.00013836,2]
[421887006,1778291432000,-150.0,0.00013862,2]
[421887001,1778291432000,-154.11357619,0.00013815,2]
[421887004,1778291432000,-5000.0,0.00013849,2]
[421887010,1778291432000,-4500.0,0.000139,5]
[421887012,1778291432000,-150.0,0.00013937,2]
[421887013,1778291432000,-500.0,0.00013948,2]
[421887021,1778291432000,-500.0,0.00013948,2]
[421887020,1778291432000,-500.0,0.00013948,2]
[421887011,1778291432000,-420.0,0.0001393,2]
[421887014,1778291432000,-500.0,0.00013948,2]
[421886962,1778291432000,-257.13,0.00013699,2]
[421887015,1778291432000,-500.0,0.00013948,2]
[421887016,1778291432000,-500.0,0.00013948,2]
[421887018,1778291432000,-500.0,0.00013948,2]
[421887017,1778291432000,-500.0,0.00013948,2]
[421886993,1778291432000,-151.0,0.00013815,2]
[421886992,1778291432000,-151.0,0.00013815,2]
[421887019,1778291432000,-500.0,0.00013948,2]
[421886987,1778291432000,-151.0,0.00013815,2]
[421886990,1778291432000,-151.0,0.00013815,2]
[421886970,1778291432000,-150.0,0.00013737,2]
[421886972,1778291432000,-150.0,0.00013787,2]
[421886963,1778291432000,-200.0,0.00013699,2]
[421886961,1778291432000,-308.55,0.00013699,2]
[421886968,1778291432000,-166.66,0.00013699,2]
[421886964,1778291432000,-214.27,0.00013699,2]
[421886966,1778291432000,-892.82,0.00013699,2]
[421886965,1778291432000,-178.56,0.00013699,2]
[421886974,1778291432000,-196.68309839,0.00013792,2]
[421886982,1778291432000,-151.0,0.00013815,2]
[421886977,1778291432000,-1015.29,0.000138,2]
[421886985,1778291432000,-151.0,0.00013815,2]
[421886969,1778291432000,-150.0,0.00013737,2]
[421886983,1778291432000,-151.0,0.00013815,2]
[421886975,1778291432000,-4002.92985296,0.00013792,2]
[421886998,1778291432000,-2080.17592889,0.00013815,2]
[421886991,1778291432000,-151.0,0.00013815,2]
[421886997,1778291432000,-151.0,0.00013815,2]
[421886980,1778291432000,-501.93994397,0.00013815,2]
[421886988,1778291432000,-151.0,0.00013815,2]
[421886978,1778291432000,-2200.0,0.000138,5]
[421886984,1778291432000,-151.0,0.00013815,2]
[421886981,1778291432000,-151.0,0.00013815,2]
[421886986,1778291432000,-151.0,0.00013815,2]
[421886973,1778291432000,-150.0,0.00013787,2]
[421886979,1778291432000,-500.0,0.00013808,2]
[421886976,1778291432000,-200.69494439,0.000138,2]
[421887049,1778291433000,-500.0,0.00014049,2]
[421887057,1778291433000,-500.0,0.00014049,2]
[421887048,1778291433000,-500.0,0.00014049,2]
[421887056,1778291433000,-500.0,0.00014049,2]
[421887052,1778291433000,-500.0,0.00014049,2]
[421887050,1778291433000,-500.0,0.00014049,2]
[421887054,1778291433000,-500.0,0.00014049,2]
[421887058,1778291433000,-500.0,0.00014049,2]
[421887055,1778291433000,-500.0,0.00014049,2]
[421887053,1778291433000,-500.0,0.00014049,2]
[421887051,1778291433000,-500.0,0.00014049,2]
[421887065,1778291433000,-166.66,0.0001411,2]
[421887062,1778291433000,-898.41,0.00014079,2]
[421887063,1778291433000,-150.0,0.00014087,2]
[421887061,1778291433000,-150.0,0.0001405,2]
[421887064,1778291433000,-150.0,0.00014087,2]
[421887070,1778291433000,-150.0,0.00014187,2]
[421887067,1778291433000,-150.0,0.00014177,2]
[421887068,1778291433000,-150.0,0.00014177,2]
[421887069,1778291433000,-240.91150034,0.00014177,2]
[421887066,1778291433000,-150.0,0.00014137,2]
[421887041,1778291433000,-241.36,0.00014,2]
[421887059,1778291433000,-500.0,0.00014049,2]
[421887043,1778291433000,-5124.26056046,0.00014017,2]
[421887034,1778291433000,-500.13337792,0.00013973,2]
[421887042,1778291433000,-250.0,0.00014,2]
[421887072,1778291433000,-500.0,0.00014235,2]
[421887023,1778291433000,-500.0,0.00013948,2]
[421887032,1778291433000,-33147.836,0.0001395,2]
[421887033,1778291433000,-500.94564921,0.00013973,2]
[421887025,1778291433000,-500.0,0.00013948,2]
[421887024,1778291433000,-500.0,0.00013948,2]
[421887029,1778291433000,-500.0,0.00013949,2]
[421887031,1778291433000,-2000.0,0.0001395,2]
[421887022,1778291433000,-500.0,0.00013948,2]
[421887026,1778291433000,-500.0,0.00013948,2]
[421887039,1778291433000,-150.0,0.00013987,2]
[421887030,1778291433000,-500.0,0.00013949,2]
[421887027,1778291433000,-500.0,0.00013948,2]
[421887036,1778291433000,-168.31089382,0.00013973,2]
[421887045,1778291433000,-500.0,0.00014049,2]
[421887044,1778291433000,-150.0,0.00014037,2]
[421887035,1778291433000,-501.70562275,0.00013973,2]
[421887037,1778291433000,-166.66,0.00013973,2]
[421887046,1778291433000,-536.19683584,0.00014049,2]
[421887038,1778291433000,-150.0,0.00013987,2]
[421887047,1778291433000,-501.86571103,0.00014049,2]
[421887040,1778291433000,-12231.72675233,0.0001399,2]
[421887028,1778291433000,-500.0,0.00013948,2]
[421887071,1778291433000,-2000.0,0.00014209,2]
[421887060,1778291433000,-500.0,0.00014049,2]
[421887076,1778291433000,-500.0,0.00014235,2]
[421887100,1778291433000,-150.0,0.00014537,2]
[421887101,1778291433000,-150.0,0.00014587,2]
[421887105,1778291433000,-150.0,0.00014687,2]
[421887103,1778291433000,-150.0,0.00014612,2]
[421887106,1778291433000,-150.0,0.00014687,2]
[421887104,1778291433000,-150.0,0.00014637,2]
[421887107,1778291433000,-1593.12422716,0.000147,2]
[421887108,1778291433000,-6700.0,0.000147,5]
[421887111,1778291433000,-5124.26056046,0.00014746,2]
[421887110,1778291433000,-150.0,0.00014737,2]
[421887102,1778291433000,-150.0,0.00014612,2]
[421887109,1778291433000,-150.0,0.00014737,2]
[421887114,1778291433000,-150.0,0.00014799,2]
[421887116,1778291433000,-161.03,0.00014815,2]
[421887113,1778291433000,-150.0,0.00014786,2]
[421887115,1778291433000,-9000.0,0.000148,5]
[421887117,1778291433000,-150.0,0.00014836,2]
[421887118,1778291433000,-219.63363,0.0001485,2]
[421887119,1778291433000,-219.63364,0.0001485,2]
[421887120,1778291433000,-219.63363,0.0001486,2]
[421887121,1778291433000,-900.0,0.00014863,2]
[421887074,1778291433000,-500.0,0.00014235,2]
[421887112,1778291433000,-2411.47082451,0.00014775,2]
[421887099,1778291433000,-13227.0,0.00014531,2]
[421887123,1778291433000,-219.0,0.00014867,5]
[421887097,1778291433000,-674.68,0.00014497,2]
[421887077,1778291433000,-500.0,0.00014235,2]
[421887073,1778291433000,-500.0,0.00014235,2]
[421887075,1778291433000,-500.0,0.00014235,2]
[421887081,1778291433000,-150.0,0.00014237,2]
[421887080,1778291433000,-150.0,0.00014237,2]
[421887078,1778291433000,-150.0,0.00014237,2]
[421887098,1778291433000,-255.0,0.00014498,2]
[421887079,1778291433000,-150.0,0.00014237,2]
[421887082,1778291433000,-150.0,0.00014237,2]
[421887084,1778291433000,-414.751446,0.0001425,2]
[421887085,1778291433000,-150.0,0.00014287,2]
[421887122,1778291433000,-500.0,0.00014863,2]
[421887088,1778291433000,-9796.86546093,0.00014373,2]
[421887087,1778291433000,-2157.14243826,0.00014363,2]
[421887093,1778291433000,-150.0,0.00014424,2]
[421887090,1778291433000,-150.0,0.00014387,2]
[421887086,1778291433000,-150.0,0.00014337,2]
[421887083,1778291433000,-166.66,0.00014247,2]
[421887092,1778291433000,-225.241357,0.00014406,2]
[421887089,1778291433000,-166.66,0.00014384,2]
[421887095,1778291433000,-150.0,0.00014487,2]
[421887094,1778291433000,-150.0,0.00014437,2]
[421887091,1778291433000,-150.0,0.00014387,2]
[421887096,1778291433000,-150.0,0.00014487,2]
[421887159,1778291434000,-500.0,0.00014998,2]
[421887157,1778291434000,-155.38654417,0.00014986,2]
[421887156,1778291434000,-154.41591505,0.00014986,2]
[421887153,1778291434000,-151.35139858,0.00014986,2]
[421887151,1778291434000,-154.12955347,0.00014986,2]
[421887154,1778291434000,-165.72151981,0.00014986,2]
[421887152,1778291434000,-152.15910352,0.00014986,2]
[421887150,1778291434000,-155.85999979,0.00014986,2]
[421887155,1778291434000,-188.53134241,0.00014986,2]
[421887166,1778291434000,-1000.0,0.00014999,2]
[421887179,1778291434000,-1000.0,0.00014999,2]
[421887164,1778291434000,-519.86872646,0.00014999,2]
[421887160,1778291434000,-500.0,0.00014998,2]
[421887162,1778291434000,-500.0,0.00014999,2]
[421887168,1778291434000,-1000.0,0.00014999,2]
[421887165,1778291434000,-1000.0,0.00014999,2]
[421887158,1778291434000,-238.10231483,0.0001499,2]
[421887163,1778291434000,-500.0,0.00014999,2]
[421887170,1778291434000,-1000.0,0.00014999,2]
[421887178,1778291434000,-1000.0,0.00014999,2]
[421887149,1778291434000,-501.32723797,0.00014973,2]
[421887167,1778291434000,-1000.0,0.00014999,2]
[421887147,1778291434000,-500.0,0.00014973,2]
[421887140,1778291434000,-2895.18283072,0.000149,2]
[421887143,1778291434000,-1279.2423023,0.00014918,2]
[421887169,1778291434000,-1000.0,0.00014999,2]
[421887125,1778291434000,-150.0,0.00014886,2]
[421887124,1778291434000,-155.0,0.00014867,5]
[421887126,1778291434000,-1385.425,0.000149,2]
[421887132,1778291434000,-929.0,0.000149,2]
[421887131,1778291434000,-1222.0,0.000149,2]
[421887130,1778291434000,-1269.0,0.000149,2]
[421887127,1778291434000,-627.397,0.000149,2]
[421887129,1778291434000,-150.648,0.000149,2]
[421887128,1778291434000,-925.0,0.000149,2]
[421887148,1778291434000,-501.51866293,0.00014973,2]
[421887133,1778291434000,-419.096,0.000149,2]
[421887134,1778291434000,-4930.007,0.000149,2]
[421887138,1778291434000,-428.85129476,0.000149,2]
[421887137,1778291434000,-11200.0,0.000149,5]
[421887135,1778291434000,-1432.1856,0.000149,2]
[421887136,1778291434000,-288.64024801,0.000149,2]
[421887142,1778291434000,-229.19024855,0.00014911,2]
[421887141,1778291434000,-3974.58025133,0.000149,2]
[421887144,1778291434000,-1733.7481394,0.00014918,2]
[421887145,1778291434000,-2489.5276584,0.00014918,2]
[421887146,1778291434000,-150.0,0.00014936,2]
[421887139,1778291434000,-155.64407016,0.000149,2]
[421887172,1778291434000,-1000.0,0.00014999,2]
[421887161,1778291434000,-150.0,0.00014998,2]
[421887174,1778291434000,-1000.0,0.00014999,2]
[421887195,1778291434000,-500.0,0.00014999,2]
[421887201,1778291434000,-500.0,0.00014999,2]
[421887196,1778291434000,-500.0,0.00014999,2]
[421887197,1778291434000,-500.0,0.00014999,2]
[421887213,1778291434000,-500.0,0.00014999,2]
[421887215,1778291434000,-500.0,0.00014999,2]
[421887206,1778291434000,-500.0,0.00014999,2]
[421887216,1778291434000,-500.0,0.00014999,2]
[421887214,1778291434000,-516.55496094,0.00014999,2]
[421887208,1778291434000,-500.0,0.00014999,2]
[421887207,1778291434000,-500.0,0.00014999,2]
[421887210,1778291434000,-500.0,0.00014999,2]
[421887211,1778291434000,-500.0,0.00014999,2]
[421887209,1778291434000,-500.0,0.00014999,2]
[421887217,1778291434000,-201.90636909,0.00014999,2]
[421887218,1778291434000,-500.0,0.00014999,2]
[421887219,1778291434000,-500.0,0.00014999,2]
[421887220,1778291434000,-500.0,0.00014999,2]
[421887224,1778291434000,-500.0,0.00014999,2]
[421887222,1778291434000,-500.0,0.00014999,2]
[421887223,1778291434000,-500.0,0.00014999,2]